fUSD/lending_fUSD_20250526
["ID","MTS","AMOUNT","RATE_DAILY","PERIOD"]
[362452026,1748301047280,-420.0,0.00027397,2]
[362452028,1748301047290,-420.0,0.00027397,2]
[362452030,1748301047300,-420.0,0.00027397,2]
[362452031,1748301047310,-420.0,0.00027397,2]
[362452033,1748301047320,-420.0,0.00027397,2]
[362452035,1748301047330,-420.0,0.00027397,2]
[362452037,1748301047339,-420.0,0.00027397,2]
[362452038,1748301047349,-420.0,0.00027397,2]
[362452040,1748301047358,-347.44507379,0.00027397,2]
[362452042,1748301047368,-420.0,0.00027397,2]
[362452044,1748301047378,-420.0,0.00027397,2]
[362452046,1748301047388,-420.0,0.00027397,2]
[362452048,1748301047397,-420.0,0.00027397,2]
[362452050,1748301047407,-420.0,0.00027397,2]
[362452052,1748301047416,-420.0,0.00027397,2]
[362452054,1748301047426,-2402.42,0.00027397,2]
[362452056,1748301047435,-420.0,0.00027397,2]
[362452058,1748301047444,-420.0,0.00027397,2]
[362452059,1748301047454,-420.0,0.00027397,2]
[362452061,1748301047463,-420.0,0.00027397,2]
[362452063,1748301047473,-420.0,0.00027397,2]
[362452065,1748301047482,-420.0,0.00027397,2]
[362452067,1748301047492,-640.79,0.00027397,2]
[362452069,1748301047501,-420.0,0.00027397,2]
[362452071,1748301047511,-420.0,0.00027397,2]
[362452072,1748301047520,-420.0,0.00027397,2]
[362452073,1748301047530,-420.0,0.00027397,2]
[362452074,1748301047539,-500.0,0.00027397,2]
[362452075,1748301047549,-420.0,0.00027397,2]
[362452076,1748301047558,-420.0,0.00027397,2]
[362452077,1748301047568,-420.0,0.00027397,2]
[362452078,1748301047577,-420.0,0.00027397,2]
[362452079,1748301047587,-423.74466603,0.00027397,2]
[362452080,1748301047597,-2350.84,0.00027397,2]
[362452081,1748301047606,-151.0,0.00027397,7]
[362452082,1748301047616,-151.0,0.00027397,7]
[362452083,1748301047625,-151.0,0.00027397,7]
[362452084,1748301047635,-2946.59,0.00027397,2]
[362452085,1748301047645,-420.0,0.00027397,2]
[362452086,1748301047656,-420.0,0.00027397,2]
[362452087,1748301047665,-420.0,0.00027397,2]
[362452088,1748301047675,-2471.29,0.00027397,2]
[362452089,1748301047685,-420.0,0.00027397,2]
[362452090,1748301047696,-420.0,0.00027397,2]
[362452091,1748301047706,-150.0,0.00027397,2]
[362452092,1748301047716,-420.0,0.00027397,2]
[362452093,1748301047726,-420.0,0.00027397,2]
[362452094,1748301047735,-420.0,0.00027397,2]
[362452095,1748301047748,-420.0,0.00027397,2]
[362452096,1748301047757,-3036.22,0.00027397,2]
[362452097,1748301047767,-420.0,0.00027397,2]
[362452098,1748301047776,-420.0,0.00027397,2]
[362452099,1748301047786,-420.0,0.00027397,2]
[362452100,1748301047796,-4024.5,0.00027397,2]
[362452101,1748301047806,-420.0,0.00027397,2]
[362452102,1748301047815,-1008.56,0.00027397,2]
[362452103,1748301047824,-420.0,0.00027397,2]
[362452104,1748301047834,-424.00875348,0.00027397,2]
[362452105,1748301047844,-574.06,0.00027397,2]
[362452106,1748301047855,-420.0,0.00027397,2]
[362452107,1748301047864,-424.38125476,0.00027397,2]
[362452108,1748301047873,-420.0,0.00027397,2]
[362452109,1748301047883,-420.0,0.00027397,2]
[362452110,1748301047893,-742.38,0.00027397,2]
[362452111,1748301047903,-420.0,0.00027397,2]
[362452112,1748301047912,-399.70679797,0.00027397,2]
[362452113,1748301047921,-420.0,0.00027397,2]
[362452114,1748301047931,-420.0,0.00027397,2]
[362452115,1748301047941,-420.0,0.00027397,2]
[362452116,1748301047950,-420.0,0.00027397,2]
[362452117,1748301047960,-420.0,0.00027397,2]
[362452118,1748301047969,-420.0,0.00027397,2]
[362452119,1748301047978,-420.0,0.00027397,2]
[362452120,1748301047988,-420.0,0.00027397,2]
[362452121,1748301048000,-420.0,0.00027397,2]
[362452122,1748301048009,-420.0,0.00027397,2]
[362452123,1748301048019,-420.0,0.00027397,2]
[362452124,1748301048028,-420.0,0.00027397,2]
[362452125,1748301048038,-420.0,0.00027397,2]
[362452126,1748301048047,-420.0,0.00027397,2]
[362452127,1748301048057,-420.0,0.00027397,2]
[362452128,1748301048068,-420.0,0.00027397,2]
[362452129,1748301048078,-420.0,0.00027397,2]
[362452130,1748301048088,-420.0,0.00027397,2]
[362452131,1748301048098,-420.0,0.00027397,2]
[362452132,1748301048108,-420.0,0.00027397,2]
[362452133,1748301048119,-420.0,0.00027397,2]
[362452134,1748301048129,-420.0,0.00027397,2]
[362452135,1748301048140,-423.06837547,0.00027397,2]
[362452136,1748301048150,-420.0,0.00027397,2]
[362452137,1748301048164,-1695.87,0.00027397,2]
[362452138,1748301048175,-420.0,0.00027397,2]
[362452139,1748301048185,-423.87399003,0.00027397,2]
[362452140,1748301048195,-420.0,0.00027397,2]
[362452141,1748301048204,-200.49870243,0.00027397,2]
[362452142,1748301048215,-420.0,0.00027397,2]
[362452143,1748301048224,-420.0,0.00027397,2]
[362452144,1748301048235,-420.0,0.00027397,2]
[362452145,1748301048244,-420.0,0.00027397,2]
[362452146,1748301048254,-420.0,0.00027397,2]
[362452147,1748301048263,-420.0,0.00027397,2]
[362452148,1748301048273,-422.75944353,0.00027397,2]
[362452149,1748301048282,-420.0,0.00027397,2]
[362452150,1748301048292,-420.0,0.00027397,2]
[362452151,1748301048302,-420.0,0.00027397,2]
[362452152,1748301048311,-420.0,0.00027397,2]
[362452153,1748301048320,-427.47906415,0.00027397,2]
[362452154,1748301048330,-420.0,0.00027397,2]
[362452155,1748301048339,-420.0,0.00027397,2]
[362452157,1748301048348,-427.75196127,0.00027397,2]
[362452158,1748301048358,-420.0,0.00027397,2]
[362452159,1748301048367,-420.0,0.00027397,2]
[362452160,1748301048376,-420.0,0.00027397,2]
[362452161,1748301048386,-420.0,0.00027397,2]
[362452162,1748301048395,-420.0,0.00027397,2]
[362452163,1748301048405,-420.0,0.00027397,2]
[362452164,1748301048414,-420.0,0.00027397,2]
[362452165,1748301048424,-420.0,0.00027397,2]
[362452166,1748301048434,-423.58090187,0.00027397,2]
[362452167,1748301048444,-420.0,0.00027397,2]
[362452168,1748301048453,-420.0,0.00027397,2]
[362452169,1748301048462,-420.0,0.00027397,2]
[362452170,1748301048472,-420.0,0.00027397,2]
[362452171,1748301048482,-420.0,0.00027397,2]
[362452172,1748301048491,-436.03,0.00027397,2]
[362452173,1748301048500,-420.0,0.00027397,2]
[362452174,1748301048510,-420.0,0.00027397,2]
[362452175,1748301048520,-420.0,0.00027397,2]
[362452176,1748301048529,-420.0,0.00027397,2]
[362452177,1748301048539,-420.0,0.00027397,2]
[362452178,1748301048549,-152.857036,0.00027397,7]
[362452179,1748301048558,-420.0,0.00027397,2]
[362452180,1748301048567,-420.0,0.00027397,2]
[362452181,1748301048577,-420.0,0.00027397,2]
[362452182,1748301048587,-420.0,0.00027397,2]
[362452183,1748301048596,-420.0,0.00027397,2]
[362452184,1748301048606,-420.0,0.00027397,2]
[362452185,1748301048615,-420.0,0.00027397,2]
[362452186,1748301048625,-420.0,0.00027397,2]
[362452187,1748301048635,-420.0,0.00027397,2]
[362452188,1748301048645,-420.0,0.00027397,2]
[362452189,1748301048655,-420.0,0.00027397,2]
[362452190,1748301048664,-420.0,0.00027397,2]
[362452191,1748301048674,-420.0,0.00027397,2]
[362452192,1748301048683,-420.0,0.00027397,2]
[362452193,1748301048693,-151.0,0.00027397,7]
[362452194,1748301048703,-424.51426428,0.00027397,2]
[362452195,1748301048712,-420.0,0.00027397,2]
[362452196,1748301048722,-420.0,0.00027397,2]
[362452197,1748301048731,-420.0,0.00027397,2]
[362452198,1748301048741,-420.0,0.00027397,2]
[362452199,1748301048751,-3084.27,0.00027397,2]
[362452200,1748301048761,-151.0,0.00027397,7]
[362452201,1748301048770,-420.0,0.00027397,2]
[362452202,1748301048780,-153.099733,0.00027397,7]
[362452203,1748301048789,-424.60277906,0.00027397,2]
[362452204,1748301048799,-420.0,0.00027397,2]
[362452205,1748301048809,-420.0,0.00027397,2]
[362452206,1748301048819,-420.0,0.00027397,2]
[362452207,1748301048829,-420.0,0.00027397,2]
[362452208,1748301048838,-420.0,0.00027397,2]
[362452209,1748301048847,-420.0,0.00027397,2]
[362452210,1748301048858,-420.0,0.00027397,2]
[362452211,1748301048868,-420.0,0.00027397,2]
[362452212,1748301048877,-3219.48,0.00027397,2]
[362452213,1748301048887,-420.0,0.00027397,2]
[362452214,1748301048898,-413.85964741,0.00027397,2]
[362452215,1748301048907,-420.0,0.00027397,2]
[362452216,1748301048917,-420.0,0.00027397,2]
[362452217,1748301048927,-420.0,0.00027397,2]
[362452218,1748301048937,-420.0,0.00027397,2]
[362452219,1748301048947,-420.0,0.00027397,2]
[362452220,1748301048956,-420.0,0.00027397,2]
[362452221,1748301048966,-420.0,0.00027397,2]
[362452222,1748301048974,-420.0,0.00027397,2]
[362452223,1748301048984,-420.0,0.00027397,2]
[362452224,1748301048994,-420.0,0.00027397,2]
[362452225,1748301049004,-420.0,0.00027397,2]
[362452226,1748301049013,-420.0,0.00027397,2]
[362452227,1748301049024,-420.0,0.00027397,2]
[362452228,1748301049033,-4177.76,0.00027397,2]
[362452229,1748301049043,-420.0,0.00027397,2]
[362452230,1748301049052,-168.63952633,0.00027397,2]
[362452231,1748301049062,-420.0,0.00027397,2]
[362452232,1748301049071,-420.0,0.00027397,2]
[362452233,1748301049081,-420.0,0.00027397,2]
[362452234,1748301049091,-420.0,0.00027397,2]
[362452235,1748301049101,-420.0,0.00027397,2]
[362452236,1748301049111,-420.0,0.00027397,2]
[362452237,1748301049121,-399.84230181,0.00027397,2]
[362452238,1748301049131,-420.0,0.00027397,2]
[362452239,1748301049141,-2446.24,0.00027397,2]
[362452240,1748301049151,-420.0,0.00027397,2]
[362452241,1748301049164,-420.0,0.00027397,2]
[362452242,1748301049174,-420.0,0.00027397,2]
[362452243,1748301049183,-420.0,0.00027397,2]
[362452244,1748301049193,-420.0,0.00027397,2]
[362452245,1748301049203,-304.15766227,0.00027397,2]
[362452246,1748301049213,-792.62,0.00027397,2]
[362452247,1748301049223,-420.0,0.00027397,2]
[362452248,1748301049233,-472.22460336,0.00027397,2]
[362452249,1748301049243,-420.0,0.00027397,2]
[362452250,1748301049252,-500.65967068,0.00027397,2]
[362452251,1748301049262,-2291.75,0.00027397,2]
[362452252,1748301049272,-420.0,0.00027397,2]
[362452253,1748301049282,-420.0,0.00027397,2]
[362452254,1748301049291,-420.0,0.00027397,2]
[362452255,1748301049300,-420.0,0.00027397,2]
[362452256,1748301049310,-439.62107707,0.00027397,2]
[362452257,1748301049322,-420.0,0.00027397,2]
[362452258,1748301049332,-420.0,0.00027397,2]
[362452259,1748301049342,-420.0,0.00027397,2]
[362452260,1748301049352,-6832.66,0.00027397,2]
[362452261,1748301049362,-420.0,0.00027397,2]
[362452262,1748301049371,-422.62672303,0.00027397,2]
[362452263,1748301049381,-424.03619239,0.00027397,2]
[362452264,1748301049392,-420.0,0.00027397,2]
[362452265,1748301049402,-420.0,0.00027397,2]
[362452266,1748301049412,-420.0,0.00027397,2]
[362452267,1748301049422,-420.0,0.00027397,2]
[362452268,1748301049432,-420.0,0.00027397,2]
[362452269,1748301049441,-420.0,0.00027397,2]
[362452270,1748301049451,-426.23453116,0.00027397,2]
[362452271,1748301049460,-420.0,0.00027397,2]
[362452272,1748301049470,-420.0,0.00027397,2]
[362452273,1748301049479,-424.75852004,0.00027397,2]
[362452274,1748301049489,-420.0,0.00027397,2]
[362452275,1748301049498,-496.34,0.00027397,2]
[362452276,1748301049508,-420.0,0.00027397,2]
[362452277,1748301049517,-420.0,0.00027397,2]
[362452278,1748301049527,-420.0,0.00027397,2]
[362452279,1748301049538,-420.0,0.00027397,2]
[362452280,1748301049548,-420.0,0.00027397,2]
[362452281,1748301049559,-420.0,0.00027397,2]
[362452282,1748301049569,-420.0,0.00027397,2]
[362452283,1748301049579,-2393.26,0.00027397,2]
[362452284,1748301049589,-420.0,0.00027397,2]
[362452285,1748301049598,-2465.4,0.00027397,2]
[362452286,1748301049607,-420.0,0.00027397,2]
[362452287,1748301049617,-420.0,0.00027397,2]
[362452288,1748301049627,-420.0,0.00027397,2]
[362452289,1748301049636,-420.0,0.00027397,2]
[362452290,1748301049647,-420.0,0.00027397,2]
[362452291,1748301049656,-420.0,0.00027397,2]
[362452292,1748301049666,-2330.58,0.00027397,2]
[362452293,1748301049675,-420.0,0.00027397,2]
[362452294,1748301049685,-420.0,0.00027397,2]
[362452295,1748301049694,-428.73866196,0.00027397,2]
[362452296,1748301049703,-420.0,0.00027397,2]
[362452297,1748301049712,-420.0,0.00027397,2]
[362452298,1748301049721,-420.0,0.00027397,2]
[362452299,1748301049731,-420.0,0.00027397,2]
[362452300,1748301049742,-420.0,0.00027397,2]
[362452301,1748301049752,-421.188857,0.00027397,2]
[362452302,1748301049761,-2958.38,0.00027397,2]
[362452303,1748301049771,-403.95859687,0.00027397,2]
[362452304,1748301049780,-3658.65,0.00027397,2]
[362452305,1748301049790,-420.0,0.00027397,2]
[362452306,1748301049799,-420.0,0.00027397,2]
[362452307,1748301049809,-420.0,0.00027397,2]
[362452308,1748301049818,-420.0,0.00027397,2]
[362452309,1748301049827,-420.0,0.00027397,2]
[362452310,1748301049837,-151.0,0.00027397,7]
[362452311,1748301049847,-424.70896193,0.00027397,2]
[362452312,1748301049857,-425.05979882,0.00027397,2]
[362452313,1748301049866,-420.0,0.00027397,2]
[362452314,1748301049875,-420.0,0.00027397,2]
[362452315,1748301049885,-420.0,0.00027397,2]
[362452316,1748301049896,-420.0,0.00027397,2]
[362452317,1748301049906,-420.0,0.00027397,2]
[362452318,1748301049916,-420.0,0.00027397,2]
[362452319,1748301049925,-473.11368152,0.00027397,2]
[362452320,1748301049935,-420.0,0.00027397,2]
[362452321,1748301049944,-420.0,0.00027397,2]
[362452322,1748301049954,-420.0,0.00027397,2]
[362452323,1748301049963,-420.0,0.00027397,2]
[362452324,1748301049973,-151.0,0.00027397,7]
[362452325,1748301049983,-153.685466,0.00027397,7]
[362452326,1748301049993,-420.0,0.00027397,2]
[362452327,1748301050002,-1143.1,0.00027397,2]
[362452328,1748301050012,-2462.79,0.00027397,2]
[362452329,1748301050022,-3533.51,0.00027397,2]
[362452330,1748301050031,-420.0,0.00027397,2]
[362452331,1748301050040,-420.0,0.00027397,2]
[362452332,1748301050050,-420.0,0.00027397,2]
[362452333,1748301050059,-3312.51,0.00027397,2]
[362452334,1748301050071,-420.0,0.00027397,2]
[362452335,1748301050081,-420.0,0.00027397,2]
[362452336,1748301050090,-151.0,0.00027397,7]
[362452337,1748301050100,-151.0,0.00027397,7]
[362452338,1748301050109,-420.0,0.00027397,2]
[362452339,1748301050119,-420.0,0.00027397,2]
[362452340,1748301050128,-420.0,0.00027397,2]
[362452341,1748301050139,-420.0,0.00027397,2]
[362452342,1748301050148,-420.0,0.00027397,2]
[362452343,1748301050349,-2000.0,0.00027397,2]
[362452344,1748301050359,-4279.07,0.00027397,2]
[362452345,1748301050370,-420.0,0.00027397,2]
[362452346,1748301050380,-420.0,0.00027397,2]
[362452347,1748301050390,-420.0,0.00027397,2]
[362452348,1748301050399,-420.0,0.00027397,2]
[362452349,1748301050408,-420.0,0.00027397,2]
[362452350,1748301050418,-420.0,0.00027397,2]
[362452351,1748301050427,-420.0,0.00027397,2]
[362452352,1748301050437,-420.0,0.00027397,2]
[362452353,1748301050447,-420.0,0.00027397,2]
[362452354,1748301050457,-429.77305611,0.00027397,2]
[362452355,1748301050466,-3444.55,0.00027397,2]
[362452356,1748301050476,-420.0,0.00027397,2]
[362452357,1748301050486,-420.0,0.00027397,2]
[362452358,1748301050496,-151.0,0.00027397,7]
[362452359,1748301050507,-151.0,0.00027397,7]
[362452360,1748301050517,-421.37,0.00027397,2]
[362452361,1748301050526,-426.95580377,0.00027397,2]
[362452362,1748301050536,-420.0,0.00027397,2]
[362452363,1748301050545,-420.0,0.00027397,2]
[362452364,1748301050554,-420.0,0.00027397,2]
[362452365,1748301050564,-151.0,0.00027397,7]
[362452366,1748301050574,-420.0,0.00027397,2]
[362452367,1748301050583,-151.0,0.00027397,7]
[362452368,1748301050592,-151.0,0.00027397,7]
[362452369,1748301050601,-151.0,0.00027397,7]
[362452370,1748301050610,-3404.49186409,0.00027397,2]
[362452371,1748301051052,-447.43813591,0.00027397,2]
[362452372,1748301051064,-420.0,0.00027397,2]
[362452373,1748301051074,-151.0,0.00027397,7]
[362452374,1748301051083,-151.0,0.00027397,7]
[362452375,1748301051093,-420.0,0.00027397,2]
[362452376,1748301051102,-420.0,0.00027397,2]
[362452377,1748301051112,-406.38306407,0.00027397,2]
[362452378,1748301051146,-13.61693593,0.00027397,2]
[362452379,1748301051159,-420.0,0.00027397,2]
[362452380,1748301051169,-287.11084937,0.00027397,2]
[362452381,1748301051178,-420.0,0.00027397,2]
[362452382,1748301051188,-420.0,0.00027397,2]
[362452383,1748301051197,-420.0,0.00027397,2]
[362452384,1748301051207,-420.0,0.00027397,2]
[362452385,1748301051217,-420.0,0.00027397,2]
[362452386,1748301051227,-420.0,0.00027397,2]
[362452387,1748301051237,-420.0,0.00027397,2]
[362452388,1748301051247,-420.0,0.00027397,2]
[362452389,1748301051257,-420.0,0.00027397,2]
[362452390,1748301051266,-478.6864233,0.00027397,2]
[362452391,1748301051275,-420.0,0.00027397,2]
[362452392,1748301051285,-420.0,0.00027397,2]
[362452393,1748301051295,-420.0,0.00027397,2]
[362452394,1748301051304,-420.0,0.00027397,2]
[362452395,1748301051314,-420.0,0.00027397,2]
[362452396,1748301051324,-433.26430687,0.00027397,2]
[362452397,1748301051333,-420.0,0.00027397,2]
[362452398,1748301051343,-300.0,0.00027397,2]
[362452399,1748301051354,-3376.25,0.00027397,2]
[362452400,1748301051364,-150.0,0.00027397,2]
[362452401,1748301051374,-420.0,0.00027397,2]
[362452402,1748301051383,-420.0,0.00027397,2]
[362452403,1748301051394,-420.0,0.00027397,2]
[362452404,1748301051403,-122.38714793,0.00027397,7]
[362452405,1748301051417,-28.61285207,0.00027397,7]
[362452406,1748301051426,-151.0,0.00027397,7]
[362452407,1748301051435,-449.08407418,0.00027397,2]
[362452408,1748301051445,-230.95307375,0.00027397,2]
[362452410,1748301349377,155.41,0.00013699,2]
[362452513,1748302178061,250.0,0.00015,2]
[362452518,1748302231702,-4649.45,0.0001999,2]
[362452519,1748302231712,-4649.45,0.0001999,2]
[362452520,1748302231721,-1629.4696,0.0001999,2]
[362452529,1748302231903,-3019.9804,0.0001999,2]
[362452530,1748302231913,-4649.45,0.0001999,2]
[362452531,1748302231923,-4649.45,0.0001999,2]
[362452532,1748302231933,-1200.0,0.00019998,2]
[362452533,1748302231942,-162.1384242,0.00019999,2]
[362452534,1748302231951,-176.77422619,0.00019999,2]
[362452535,1748302231961,-141.21258701,0.00019999,2]
[362452536,1748302231976,-32.52155801,0.00019999,2]
[362452537,1748302231986,-201.91514792,0.00019999,2]
[362452538,1748302231995,-500.0,0.00019999,2]
[362452539,1748302232005,-190.88290754,0.00019999,2]
[362452540,1748302232015,-500.0,0.00019999,2]
[362452541,1748302232024,-500.0,0.00019999,2]
[362452542,1748302232034,-611.22231229,0.00019999,2]
[362452543,1748302232043,-11698.9785862,0.0002,2]
[362452607,1748302237700,-300.0,0.00019999,2]
[362452608,1748302237710,-857.59671269,0.0002,2]
[362452609,1748302237721,-9934.31975598,0.0002,2]
[362452610,1748302237743,-20500.79962373,0.0002,2]
[362452611,1748302237754,-2791.43076,0.0002,2]
[362452612,1748302237765,-3226.22996333,0.0002,2]
[362452613,1748302237777,-7991.90000002,0.0002,2]
[362452614,1748302237788,-4176.3314625,0.0002,2]
[362452615,1748302237821,-375.11531255,0.0002,2]
[362452616,1748302237919,-3278.64998019,0.0002,2]
[362452639,1748302240071,-39029.054,0.0002,2]
[362452644,1748302240110,-653412.94666733,0.0002,2]
[362452646,1748302240119,-224.22209395,0.000205,2]
[362452648,1748302240129,-8700.76366005,0.000206,2]
[362452650,1748302240138,-13896.0,0.000206,2]
[362452652,1748302240149,-5562.0,0.000213,3]
[362452654,1748302240158,-8700.76366003,0.00021405,2]
[362452656,1748302240167,-1680.0,0.0002188,2]
[362452658,1748302240177,-5562.0,0.000219,5]
[362452660,1748302240186,-500.0,0.00021918,2]
[362452662,1748302240195,-435.804348,0.00021918,2]
[362452664,1748302240204,-8700.76366003,0.0002221,2]
[362452666,1748302240214,-500.0,0.00022366,2]
[362452668,1748302240223,-500.0,0.00022366,2]
[362452670,1748302240232,-500.0,0.00022366,2]
[362452672,1748302240242,-377.2259108,0.00022366,2]
[362452674,1748302240251,-215.29562909,0.000224,7]
[362452676,1748302240261,-500.0,0.00022402,7]
[362452678,1748302240270,-500.0,0.00022402,7]
[362452680,1748302240280,-500.0,0.00022402,7]
[362452682,1748302240290,-500.0,0.00022402,7]
[362452684,1748302240299,-215.29562906,0.00022614,7]
[362452685,1748302240308,-8700.76366003,0.00023015,2]
[362452687,1748302240317,-1077.0,0.00023491,2]
[362452689,1748302240326,-8700.76366003,0.0002382,2]
[362452691,1748302240335,-671.9020904,0.00023821,2]
[362452693,1748302240345,-2351.0,0.0002394,2]
[362452695,1748302240354,-415.62,0.000243,2]
[362452697,1748302240363,-215.29562906,0.00024329,11]
[362452699,1748302240373,-328.94,0.00024436,2]
[362452700,1748302240383,-8700.76366003,0.00024625,2]
[362452701,1748302240392,-1077.0,0.00024728,2]
[362452702,1748302240401,-4000.0,0.00025874,4]
[362452703,1748302240411,-1077.0,0.00026029,2]
[362452704,1748302240420,-215.29562906,0.00026043,14]
[362452705,1748302240430,-3292.0,0.00026193,2]
[362452706,1748302240439,-1000.0,0.00026313,2]
[362452707,1748302240449,-155.23,0.00026354,120]
[362452708,1748302240458,-250.0,0.00026376,2]
[362452710,1748302240468,-175.0,0.000264,2]
[362452712,1748302240477,-151.0,0.000264,2]
[362452714,1748302240487,-789.62,0.00026487,2]
[362452716,1748302240497,-151.61,0.0002656,2]
[362452718,1748302240506,-328.94,0.000267,2]
[362452720,1748302240517,-221.0,0.00027,7]
[362452722,1748302240526,-1000.0,0.000271,2]
[362452724,1748302240536,-15003.93005265,0.000272,2]
[362452726,1748302240545,-15003.9300525,0.000272,2]
[362452728,1748302240555,-15003.9300525,0.000272,2]
[362452730,1748302240564,-15003.9300525,0.000272,2]
[362452732,1748302240574,-15003.9300525,0.000272,2]
[362452734,1748302240583,-15003.9300525,0.000272,2]
[362452736,1748302240592,-15003.9300525,0.000272,2]
[362452738,1748302240602,-15003.9300525,0.000272,2]
[362452740,1748302240611,-15003.9300525,0.000272,2]
[362452742,1748302240620,-15003.9300525,0.000272,2]
[362452744,1748302240630,-15003.9300525,0.000272,2]
[362452746,1748302240639,-15003.9300525,0.000272,2]
[362452748,1748302240648,-15003.9300525,0.000272,2]
[362452750,1748302240657,-15003.9300525,0.000272,2]
[362452752,1748302240666,-15003.9300525,0.000272,2]
[362452753,1748302240675,-15003.9300525,0.000272,2]
[362452754,1748302240685,-15003.9300525,0.000272,2]
[362452755,1748302240694,-15003.9300525,0.000272,2]
[362452756,1748302240704,-15003.9300525,0.000272,2]
[362452757,1748302240713,-11500.25674959,0.00027277,2]
[362452758,1748302240723,-163.75269402,0.00027287,2]
[362452759,1748302240732,-332.8026422,0.00027287,2]
[362452760,1748302240742,-179.95016649,0.00027296,2]
[362452761,1748302240752,-405.85144602,0.00027297,2]
[362452762,1748302240761,-15003.9300525,0.00027297,2]
[362452763,1748302240770,-1077.0,0.0002733,2]
[362452764,1748302240779,-11500.25674956,0.0002734,2]
[362452765,1748302240789,-711.188,0.00027348,16]
[362452766,1748302240798,-8387.3085404,0.00027367,2]
[362452767,1748302240808,-354.92097503,0.0002737,2]
[362452768,1748302240817,-500.0,0.00027373,2]
[362452769,1748302240827,-287.31637834,0.00027373,2]
[362452770,1748302240836,-500.0,0.00027373,2]
[362452772,1748302240845,-500.0,0.00027373,2]
[362452774,1748302240854,-500.0,0.00027373,2]
[362452776,1748302240863,-500.0,0.00027373,2]
[362452778,1748302240873,-500.78382127,0.00027373,2]
[362452780,1748302240882,-500.0,0.00027373,2]
[362452782,1748302240892,-500.0,0.00027373,2]
[362452809,1748302241148,-505.00798943,0.00027373,2]
[362452811,1748302241157,-1183.09095464,0.00027373,2]
[362452813,1748302241167,-269680.741697,0.00027377,2]
[362452815,1748302241176,-155.54,0.00027377,2]
[362452817,1748302241186,-115577.460727,0.00027387,2]
[362452819,1748302241197,-231154.921455,0.00027387,2]
[362452820,1748302241207,-155.54,0.00027387,2]
[362452822,1748302241218,-151.0,0.00027387,7]
[362452824,1748302241227,-151.0,0.00027387,7]
[362452826,1748302241237,-151.0,0.00027387,7]
[362452828,1748302241246,-151.0,0.00027387,7]
[362452830,1748302241255,-151.0,0.00027387,7]
[362452832,1748302241264,-151.0,0.00027387,7]
[362452834,1748302241274,-155.824089,0.00027387,7]
[362452836,1748302241285,-170.87,0.00027396,2]
[362452838,1748302241294,-169.55474893,0.00027397,3]
[362452839,1748302241306,-237056.9700663,0.00027397,3]
[362452841,1748302241316,-420.0,0.00027397,2]
[362452843,1748302241326,-1191.485967,0.00027397,2]
[362452845,1748302241336,-420.0,0.00027397,2]
[362452847,1748302241347,-191.674448,0.00027397,2]
[362452849,1748302241358,-420.0,0.00027397,2]
[362452851,1748302241367,-420.0,0.00027397,2]
[362452853,1748302241377,-420.0,0.00027397,2]